[Event "*** Titled Tuesday Blitz"]
[Site "Chess.com"]
[Date "2019.01.01"]
[Round "6"]
[White "Bad4life"]
[Black "pandamaster3000"]
[Result "1-0"]
[WhiteElo "2336"]
[BlackElo "2202"]
[TimeControl "180+2"]
[EndTime "14:27:18 PST"]
[Termination "Bad4life won by resignation"]

1. e4 {[%clk 0:03:01.9]} 1... e6 {[%clk 0:02:59.8]} 2. d4 {[%clk 0:03:02.7]}
2... d5 {[%clk 0:03:01.1]} 3. Nd2 {[%clk 0:03:04.3]} 3... Nc6 {[%clk 0:02:58]}
4. Ngf3 {[%clk 0:03:04.7]} 4... Nf6 {[%clk 0:02:58.7]} 5. e5 {[%clk 0:03:05.6]}
5... Nd7 {[%clk 0:03:00.3]} 6. c4 {[%clk 0:03:06.4]} 6... f6 {[%clk 0:02:51.2]}
7. cxd5 {[%clk 0:03:03.2]} 7... exd5 {[%clk 0:02:51.1]} 8. Bd3 {[%clk
0:02:43.6]} 8... fxe5 {[%clk 0:02:45]} 9. Nxe5 {[%clk 0:02:41.8]} 9... Ndxe5
{[%clk 0:02:30.4]} 10. dxe5 {[%clk 0:02:42.6]} 10... Nxe5 {[%clk 0:02:16]} 11.
Qh5+ {[%clk 0:02:43.1]} 11... Nf7 {[%clk 0:02:17.1]} 12. O-O {[%clk 0:02:39.3]}
12... Qg5 {[%clk 0:01:56.2]} 13. Re1+ {[%clk 0:02:29.8]} 13... Be7 {[%clk
0:01:57.1]} 14. Qe2 {[%clk 0:02:28.4]} 14... Bg4 {[%clk 0:01:30.2]} 15. Nf3
{[%clk 0:02:25.1]} 15... Bxf3 {[%clk 0:01:26]} 16. Qxf3 {[%clk 0:02:26.4]} 16...
Qf6 {[%clk 0:01:14.6]} 17. Qh3 {[%clk 0:02:04]} 17... g6 {[%clk 0:01:10.3]} 18.
Re6 {[%clk 0:02:00.8]} 18... Qd4 {[%clk 0:01:04.8]} 19. Be3 {[%clk 0:01:49.9]}
19... Qxd3 {[%clk 0:01:04.7]} 20. Rxe7+ {[%clk 0:01:50.9]} 20... Kxe7 {[%clk
0:01:03.5]} 21. Bc5+ {[%clk 0:01:45.7]} 21... Kd8 {[%clk 0:00:52.8]} 22. Qxd3
{[%clk 0:01:45.3]} 22... c6 {[%clk 0:00:53.7]} 23. Re1 {[%clk 0:01:43.6]} 23...
Nh6 {[%clk 0:00:46.6]} 24. Be7+ {[%clk 0:01:41.9]} 24... Kc8 {[%clk 0:00:46.6]}
25. Qh3+ {[%clk 0:01:43.5]} 25... Nf5 {[%clk 0:00:46.7]} 26. Bf6 {[%clk
0:01:44.6]} 26... Rf8 {[%clk 0:00:45.2]} 27. g4 {[%clk 0:01:45.5]} 27... Rxf6
{[%clk 0:00:45.8]} 28. Re8+ {[%clk 0:01:46]} 28... Kc7 {[%clk 0:00:43.2]} 29.
Rxa8 {[%clk 0:01:47.9]} 29... Nd4 {[%clk 0:00:43.8]} 30. g5 {[%clk 0:01:46]}
30... Rf7 {[%clk 0:00:37.7]} 31. Qc8+ {[%clk 0:01:42.5]} 31... Kb6 {[%clk
0:00:38.5]} 32. Qd8+ {[%clk 0:01:44]} 32... Ka6 {[%clk 0:00:39.7]} 33. Qb8
{[%clk 0:01:41]} 33... Nf3+ {[%clk 0:00:38.7]} 34. Kf1 {[%clk 0:01:40.6]} 34...
b6 {[%clk 0:00:39.1]} 35. Qc8+ {[%clk 0:01:41.1]} 35... Kb5 {[%clk 0:00:40.3]}
36. a4+ {[%clk 0:01:35.7]} 36... Kc5 {[%clk 0:00:38.9]} 37. b4+ {[%clk
0:01:35.4]} 37... Kd4 {[%clk 0:00:33.5]} 38. Qxc6 {[%clk 0:01:31.5]} 38... Nd2+
{[%clk 0:00:34.6]} 39. Ke2 {[%clk 0:01:31.1]} 39... Ne4 {[%clk 0:00:35.8]} 40.
Rd8 {[%clk 0:01:20.2]} 40... Rxf2+ {[%clk 0:00:34.6]} 41. Ke1 {[%clk 0:01:21.6]}
41... Rf5 {[%clk 0:00:24.2]} 42. Qc2 {[%clk 0:01:16.5]} 42... Re5 {[%clk
0:00:22]} 43. Kf1 {[%clk 0:01:10.5]} 43... Rf5+ {[%clk 0:00:21.9]} 44. Kg1
{[%clk 0:01:11.1]} 44... Rxg5+ {[%clk 0:00:22.3]} 45. Kh1 {[%clk 0:01:07.3]}
45... h6 {[%clk 0:00:22.8]} 46. Qb2+ {[%clk 0:01:04]} 46... Kc4 {[%clk
0:00:22.3]} 47. Rc8+ {[%clk 0:01:04.3]} 47... Kd3 {[%clk 0:00:23.1]} 48. Rc1
{[%clk 0:01:02.2]} 48... Ke3 {[%clk 0:00:21.3]} 49. Re1+ {[%clk 0:01:02]} 49...
Kd3 {[%clk 0:00:20.9]} 50. Qb1+ {[%clk 0:00:59.1]} 50... Kd4 {[%clk 0:00:22.2]}
51. Qb2+ {[%clk 0:00:57.9]} 51... Kd3 {[%clk 0:00:23.1]} 52. Qb3+ {[%clk
0:00:46.7]} 52... Kd4 {[%clk 0:00:23.4]} 53. Qe3+ {[%clk 0:00:47.3]} 53... Ke5
{[%clk 0:00:24.6]} 54. a5 {[%clk 0:00:43.2]} 54... bxa5 {[%clk 0:00:25.1]} 55.
bxa5 {[%clk 0:00:44.4]} 55... Kd6 {[%clk 0:00:25.6]} 56. Qxa7 {[%clk 0:00:38.6]}
56... Kc6 {[%clk 0:00:23.5]} 57. Qb6+ {[%clk 0:00:39.1]} 57... Kd7 {[%clk
0:00:24.4]} 58. a6 {[%clk 0:00:39.1]} 58... Rf5 {[%clk 0:00:18.4]} 59. a7 {[%clk
0:00:35.1]} 59... Nf2+ {[%clk 0:00:18.2]} 60. Qxf2 {[%clk 0:00:33.7]} 60... Rxf2
{[%clk 0:00:20.1]} 61. a8=Q {[%clk 0:00:34.7]} 1-0

[Event "*** Titled Tuesday Blitz"]
[Site "Chess.com"]
[Date "2019.01.01"]
[Round "6"]
[White "champ2005"]
[Black "LastGladiator1"]
[Result "1-0"]
[WhiteElo "2633"]
[BlackElo "2626"]
[TimeControl "180+2"]
[EndTime "14:27:21 PST"]
[Termination "champ2005 won on time"]

1. b3 {[%clk 0:03:00.4]} 1... d5 {[%clk 0:02:57.2]} 2. Bb2 {[%clk 0:03:00.9]}
2... Bf5 {[%clk 0:02:57.4]} 3. Nf3 {[%clk 0:03:00.4]} 3... Nf6 {[%clk
0:02:57.6]} 4. g3 {[%clk 0:02:59.4]} 4... e6 {[%clk 0:02:56.1]} 5. Bg2 {[%clk
0:03:00.4]} 5... Be7 {[%clk 0:02:57]} 6. O-O {[%clk 0:03:01.5]} 6... O-O {[%clk
0:02:58.3]} 7. Nh4 {[%clk 0:02:53.9]} 7... Bg4 {[%clk 0:02:58.6]} 8. h3 {[%clk
0:02:53.4]} 8... Bh5 {[%clk 0:02:59.2]} 9. g4 {[%clk 0:02:54.7]} 9... Nfd7
{[%clk 0:02:56.9]} 10. Nf5 {[%clk 0:02:42.9]} 10... Bf6 {[%clk 0:02:35.5]} 11.
c3 {[%clk 0:02:41.9]} 11... Bg6 {[%clk 0:02:34.1]} 12. Ng3 {[%clk 0:02:42.8]}
12... Bh4 {[%clk 0:02:18.1]} 13. d3 {[%clk 0:02:40.8]} 13... a5 {[%clk
0:02:05.3]} 14. Nd2 {[%clk 0:02:40.2]} 14... a4 {[%clk 0:02:05.4]} 15. Nf3
{[%clk 0:02:41]} 15... Bf6 {[%clk 0:02:03.4]} 16. Qc2 {[%clk 0:02:33.1]} 16...
Nc6 {[%clk 0:01:59.5]} 17. e4 {[%clk 0:02:25]} 17... a3 {[%clk 0:01:48.2]} 18.
Bc1 {[%clk 0:02:25.6]} 18... Nb4 {[%clk 0:01:42.7]} 19. Qd2 {[%clk 0:01:56.5]}
19... Nc6 {[%clk 0:01:02.6]} 20. g5 {[%clk 0:01:57]} 20... Be7 {[%clk
0:01:02.3]} 21. Nh4 {[%clk 0:01:58]} 21... dxe4 {[%clk 0:01:00.1]} 22. Nxg6
{[%clk 0:01:57.1]} 22... hxg6 {[%clk 0:01:02]} 23. dxe4 {[%clk 0:01:55.2]} 23...
Nc5 {[%clk 0:01:02.5]} 24. h4 {[%clk 0:01:32.9]} 24... Nd3 {[%clk 0:00:42.8]}
25. Rd1 {[%clk 0:01:24.9]} 25... Nxc1 {[%clk 0:00:43]} 26. Raxc1 {[%clk
0:01:26.8]} 26... Qxd2 {[%clk 0:00:42.2]} 27. Rxd2 {[%clk 0:01:28.7]} 27... Bd6
{[%clk 0:00:43.5]} 28. Rcd1 {[%clk 0:01:10.1]} 28... Bxg3 {[%clk 0:00:14.8]} 29.
fxg3 {[%clk 0:01:12]} 29... Ne5 {[%clk 0:00:10.9]} 30. Kf2 {[%clk 0:01:00.4]}
30... f6 {[%clk 0:00:11.4]} 31. gxf6 {[%clk 0:01:01.1]} 31... gxf6 {[%clk
0:00:10.3]} 32. Bh3 {[%clk 0:00:51.7]} 32... Rfe8 {[%clk 0:00:06.8]} 33. Ke3
{[%clk 0:00:49.5]} 33... Kf7 {[%clk 0:00:07.8]} 34. Bf1 {[%clk 0:00:42.8]} 34...
Ke7 {[%clk 0:00:08.2]} 35. Be2 {[%clk 0:00:41.1]} 35... Rh8 {[%clk 0:00:07.8]}
36. b4 {[%clk 0:00:38.5]} 36... c6 {[%clk 0:00:06.1]} 37. c4 {[%clk 0:00:39.4]}
37... f5 {[%clk 0:00:04.9]} 38. c5 {[%clk 0:00:35.6]} 38... Kf6 {[%clk
0:00:04.7]} 39. Rf1 {[%clk 0:00:26.1]} 39... Ke7 {[%clk 0:00:04.7]} 40. Kf4
{[%clk 0:00:22.6]} 40... Nf7 {[%clk 0:00:05.3]} 41. Rfd1 {[%clk 0:00:22.2]}
41... Kf6 {[%clk 0:00:04.5]} 42. Rd7 {[%clk 0:00:18.6]} 42... Rab8 {[%clk
0:00:04.5]} 43. Rc7 {[%clk 0:00:16.7]} 43... Ne5 {[%clk 0:00:05.4]} 44. Ke3
{[%clk 0:00:14.8]} 44... Rhg8 {[%clk 0:00:05.8]} 45. Rf1 {[%clk 0:00:14.6]}
45... b6 {[%clk 0:00:04.6]} 46. g4 {[%clk 0:00:15]} 1-0

[Event "*** Titled Tuesday Blitz"]
[Site "Chess.com"]
[Date "2019.01.01"]
[Round "6"]
[White "xxysoul6"]
[Black "KenanGarayev"]
[Result "0-1"]
[WhiteElo "2897"]
[BlackElo "2857"]
[TimeControl "180+2"]
[EndTime "14:27:22 PST"]
[Termination "KenanGarayev won by resignation"]

1. d4 {[%clk 0:03:01.9]} 1... Nf6 {[%clk 0:03:00.2]} 2. c4 {[%clk 0:03:03.3]}
2... e6 {[%clk 0:02:59.1]} 3. g3 {[%clk 0:03:04.1]} 3... d5 {[%clk 0:02:57.5]}
4. Bg2 {[%clk 0:03:05.5]} 4... Be7 {[%clk 0:02:56.6]} 5. Nf3 {[%clk 0:03:06.7]}
5... O-O {[%clk 0:02:56.1]} 6. Nc3 {[%clk 0:03:08.2]} 6... dxc4 {[%clk
0:02:55.1]} 7. Ne5 {[%clk 0:03:09.8]} 7... Nc6 {[%clk 0:02:52.8]} 8. Bxc6 {[%clk
0:03:09.9]} 8... bxc6 {[%clk 0:02:54.7]} 9. Nxc6 {[%clk 0:03:11.5]} 9... Qe8
{[%clk 0:02:55.6]} 10. Nxe7+ {[%clk 0:03:12.3]} 10... Qxe7 {[%clk 0:02:57.5]}
11. Qa4 {[%clk 0:03:13.8]} 11... c5 {[%clk 0:02:55.3]} 12. dxc5 {[%clk
0:03:14.9]} 12... Qxc5 {[%clk 0:02:57.2]} 13. Be3 {[%clk 0:03:16.4]} 13... Qc7
{[%clk 0:02:56.4]} 14. O-O-O {[%clk 0:03:17.2]} 14... Bb7 {[%clk 0:02:43]} 15.
f3 {[%clk 0:03:18.3]} 15... Rfc8 {[%clk 0:02:39.8]} 16. Rd2 {[%clk 0:03:18.6]}
16... Nd5 {[%clk 0:02:38.5]} 17. Bd4 {[%clk 0:03:19.7]} 17... a5 {[%clk
0:02:33.9]} 18. Rhd1 {[%clk 0:03:19.3]} 18... Rab8 {[%clk 0:02:31.8]} 19. Nxd5
{[%clk 0:03:11.2]} 19... exd5 {[%clk 0:02:29.4]} 20. Qa3 {[%clk 0:03:12.1]}
20... Ba8 {[%clk 0:02:23.4]} 21. Qc3 {[%clk 0:03:11.7]} 21... f6 {[%clk
0:02:21.6]} 22. g4 {[%clk 0:03:10.6]} 22... Qf7 {[%clk 0:02:16.2]} 23. h4 {[%clk
0:03:10.5]} 23... a4 {[%clk 0:02:12.8]} 24. g5 {[%clk 0:03:11.6]} 24... fxg5
{[%clk 0:02:09.6]} 25. Rg1 {[%clk 0:03:12.7]} 25... Rc6 {[%clk 0:02:06.4]} 26.
Rxg5 {[%clk 0:03:04.9]} 26... Rg6 {[%clk 0:02:03.8]} 27. Be5 {[%clk 0:03:05.4]}
27... Re8 {[%clk 0:02:01.7]} 28. Rd1 {[%clk 0:02:56.4]} 28... Rxg5 {[%clk
0:01:49.7]} 29. hxg5 {[%clk 0:02:58.3]} 29... Bc6 {[%clk 0:01:48.2]} 30. Qd4
{[%clk 0:02:55.5]} 30... a3 {[%clk 0:01:46]} 31. bxa3 {[%clk 0:02:55.6]} 31...
Qe7 {[%clk 0:01:45.2]} 32. f4 {[%clk 0:02:48.9]} 32... Ra8 {[%clk 0:01:42.7]}
33. Qb2 {[%clk 0:02:39.2]} 33... Qxa3 {[%clk 0:01:39.4]} 34. Bxg7 {[%clk
0:02:27.9]} 34... Qe3+ {[%clk 0:01:30.7]} 35. Kb1 {[%clk 0:02:28.3]} 35... Qxf4
{[%clk 0:01:27.4]} 36. Ka1 {[%clk 0:02:25.6]} 36... Rb8 {[%clk 0:01:24.5]} 37.
Qc3 {[%clk 0:02:26.3]} 37... Re8 {[%clk 0:01:23.5]} 38. Bh8 {[%clk 0:02:18.1]}
38... Re7 {[%clk 0:01:22.3]} 39. Rb1 {[%clk 0:02:10.4]} 39... Be8 {[%clk
0:01:16.1]} 40. Rd1 {[%clk 0:01:39.8]} 40... Bg6 {[%clk 0:01:09.3]} 41. Bf6
{[%clk 0:01:13.2]} 41... Rxe2 {[%clk 0:01:04.6]} 42. Qa5 {[%clk 0:01:14.1]}
42... Qe4 {[%clk 0:01:03.2]} 43. Qd8+ {[%clk 0:00:57.5]} 43... Qe8 {[%clk
0:00:53.1]} 44. Qxd5+ {[%clk 0:00:56.7]} 44... Bf7 {[%clk 0:00:53.8]} 45. Qa5
{[%clk 0:00:47.7]} 45... c3 {[%clk 0:00:51.5]} 46. Qxc3 {[%clk 0:00:36.5]} 46...
Rxa2+ {[%clk 0:00:47.9]} 47. Kb1 {[%clk 0:00:37.8]} 47... Qe4+ {[%clk
0:00:47.4]} 48. Kc1 {[%clk 0:00:37.1]} 48... Qf4+ {[%clk 0:00:48]} 49. Kb1
{[%clk 0:00:35.6]} 49... Ra8 {[%clk 0:00:44.9]} 50. Be5 {[%clk 0:00:12.9]} 50...
Qe4+ {[%clk 0:00:41.7]} 51. Kc1 {[%clk 0:00:14.3]} 51... Re8 {[%clk 0:00:35.2]}
52. Bf6 {[%clk 0:00:13.8]} 52... Qf4+ {[%clk 0:00:33.3]} 53. Rd2 {[%clk
0:00:14.6]} 53... Qf1+ {[%clk 0:00:29]} 54. Kc2 {[%clk 0:00:14.9]} 54... Bg6+
{[%clk 0:00:25.4]} 55. Kb2 {[%clk 0:00:09.8]} 55... Qb1+ {[%clk 0:00:24.1]} 0-1

[Event "*** Titled Tuesday Blitz"]
[Site "Chess.com"]
[Date "2019.01.01"]
[Round "6"]
[White "Kirill_Klukin"]
[Black "c63_amg"]
[Result "0-1"]
[WhiteElo "2594"]
[BlackElo "2691"]
[TimeControl "180+2"]
[EndTime "14:27:26 PST"]
[Termination "c63_amg won by resignation"]

1. d4 {[%clk 0:03:01.9]} 1... Nf6 {[%clk 0:02:58.6]} 2. Nf3 {[%clk 0:03:02.7]}
2... e6 {[%clk 0:02:58.6]} 3. e3 {[%clk 0:03:03.1]} 3... d5 {[%clk 0:02:53.2]}
4. Bd3 {[%clk 0:03:04]} 4... c5 {[%clk 0:02:54.2]} 5. O-O {[%clk 0:03:02.5]}
5... Nc6 {[%clk 0:02:55.5]} 6. b3 {[%clk 0:03:01.3]} 6... Bd6 {[%clk 0:02:56.1]}
7. Bb2 {[%clk 0:03:02.2]} 7... O-O {[%clk 0:02:57.2]} 8. Nbd2 {[%clk 0:03:02.3]}
8... b6 {[%clk 0:02:58.2]} 9. Ne5 {[%clk 0:03:01.4]} 9... Bb7 {[%clk 0:02:57.6]}
10. Nxc6 {[%clk 0:03:00.8]} 10... Bxc6 {[%clk 0:02:58.3]} 11. Qe2 {[%clk
0:03:01.9]} 11... Qc7 {[%clk 0:02:55.8]} 12. h3 {[%clk 0:03:02.5]} 12... e5
{[%clk 0:02:56]} 13. dxc5 {[%clk 0:02:40.1]} 13... Bxc5 {[%clk 0:02:40]} 14. e4
{[%clk 0:02:37.9]} 14... Rfe8 {[%clk 0:02:40.2]} 15. Rfe1 {[%clk 0:02:12.9]}
15... Qb7 {[%clk 0:02:26.6]} 16. a4 {[%clk 0:02:10.5]} 16... Bb4 {[%clk
0:02:04.4]} 17. c3 {[%clk 0:01:35.9]} 17... Bc5 {[%clk 0:02:00.6]} 18. b4 {[%clk
0:01:36.4]} 18... Bf8 {[%clk 0:01:58.6]} 19. Ba6 {[%clk 0:01:34.7]} 19... Qc7
{[%clk 0:01:51]} 20. Bb5 {[%clk 0:01:32.1]} 20... Rad8 {[%clk 0:01:44.1]} 21.
Rad1 {[%clk 0:01:31.8]} 21... dxe4 {[%clk 0:01:30.9]} 22. Qc4 {[%clk 0:01:01.5]}
22... Re6 {[%clk 0:01:12.3]} 23. Nf1 {[%clk 0:00:38.8]} 23... Rc8 {[%clk
0:01:03.8]} 24. Ne3 {[%clk 0:00:29.6]} 24... g6 {[%clk 0:00:51.7]} 25. Qb3
{[%clk 0:00:28.2]} 25... Bb7 {[%clk 0:00:44.5]} 26. Bc4 {[%clk 0:00:27.8]} 26...
Re7 {[%clk 0:00:40.1]} 27. Bc1 {[%clk 0:00:27.5]} 27... Kg7 {[%clk 0:00:34.9]}
28. b5 {[%clk 0:00:28.1]} 28... Nd7 {[%clk 0:00:24.4]} 29. Bd5 {[%clk
0:00:25.4]} 29... Nc5 {[%clk 0:00:24.8]} 30. Qa2 {[%clk 0:00:26.3]} 30... Rd7
{[%clk 0:00:23.4]} 31. c4 {[%clk 0:00:24.2]} 31... Rcd8 {[%clk 0:00:23.6]} 32.
Ba3 {[%clk 0:00:24]} 32... f6 {[%clk 0:00:21.4]} 33. Rf1 {[%clk 0:00:09.7]}
33... Nd3 {[%clk 0:00:18.5]} 34. Bxf8+ {[%clk 0:00:10.2]} 34... Rxf8 {[%clk
0:00:19.7]} 35. f3 {[%clk 0:00:10.3]} 35... Qc5 {[%clk 0:00:16]} 36. Qe2 {[%clk
0:00:08.6]} 36... Nf4 {[%clk 0:00:16.7]} 37. Qf2 {[%clk 0:00:10]} 37... exf3
{[%clk 0:00:17.4]} 38. Qxf3 {[%clk 0:00:10.7]} 38... Bxd5 {[%clk 0:00:17.9]} 39.
cxd5 {[%clk 0:00:11.9]} 39... Rfd8 {[%clk 0:00:18.1]} 40. Rc1 {[%clk 0:00:13.1]}
40... Qd4 {[%clk 0:00:17.3]} 41. Rfd1 {[%clk 0:00:13.9]} 41... Qxa4 {[%clk
0:00:17.9]} 42. Rc6 {[%clk 0:00:12.5]} 42... Qxb5 {[%clk 0:00:16.7]} 43. g3
{[%clk 0:00:12.7]} 43... Nh5 {[%clk 0:00:14.7]} 44. Nf5+ {[%clk 0:00:11.1]}
44... Kh8 {[%clk 0:00:13.5]} 45. Nh6 {[%clk 0:00:08.8]} 45... Rxd5 {[%clk
0:00:11.8]} 46. Rxd5 {[%clk 0:00:05.1]} 46... Qxd5 {[%clk 0:00:12.3]} 47. Rxf6
{[%clk 0:00:05.4]} 47... Qxf3 {[%clk 0:00:08.2]} 48. Rxf3 {[%clk 0:00:07.3]}
48... Kg7 {[%clk 0:00:09.8]} 49. Ng4 {[%clk 0:00:08.2]} 49... Rf8 {[%clk
0:00:09.5]} 50. Ra3 {[%clk 0:00:08.4]} 50... Rf7 {[%clk 0:00:09.8]} 51. Nxe5
{[%clk 0:00:09.7]} 51... Rc7 {[%clk 0:00:11.4]} 52. Nc6 {[%clk 0:00:11.2]} 52...
Rxc6 {[%clk 0:00:12.5]} 53. Ra6 {[%clk 0:00:11.6]} 0-1

[Event "*** Titled Tuesday Blitz"]
[Site "Chess.com"]
[Date "2019.01.01"]
[Round "6"]
[White "sunloong"]
[Black "Andrew-FB00"]
[Result "1/2-1/2"]
[WhiteElo "1884"]
[BlackElo "1806"]
[TimeControl "180+2"]
[EndTime "14:27:33 PST"]
[Termination "Game drawn by repetition"]

1. e4 {[%clk 0:03:01.9]} 1... e5 {[%clk 0:02:59]} 2. Nf3 {[%clk 0:03:02.9]} 2...
Nc6 {[%clk 0:02:57.4]} 3. Bb5 {[%clk 0:03:04.2]} 3... a6 {[%clk 0:02:56.9]} 4.
Ba4 {[%clk 0:03:05.6]} 4... Nf6 {[%clk 0:02:57.2]} 5. O-O {[%clk 0:03:06.9]}
5... b5 {[%clk 0:02:57.3]} 6. Bb3 {[%clk 0:03:08.1]} 6... Bc5 {[%clk 0:02:58.2]}
7. c3 {[%clk 0:03:06.8]} 7... d6 {[%clk 0:02:57.9]} 8. d4 {[%clk 0:03:07.9]}
8... Bb6 {[%clk 0:02:56.8]} 9. dxe5 {[%clk 0:02:53.6]} 9... dxe5 {[%clk
0:02:57]} 10. Qxd8+ {[%clk 0:02:51.5]} 10... Nxd8 {[%clk 0:02:57.4]} 11. Nxe5
{[%clk 0:02:28.1]} 11... Nxe4 {[%clk 0:02:57.6]} 12. Bd5 {[%clk 0:02:15.7]}
12... Bb7 {[%clk 0:02:42.8]} 13. Bxb7 {[%clk 0:01:51.7]} 13... Nxb7 {[%clk
0:02:40.6]} 14. Nd2 {[%clk 0:01:23.8]} 14... Nxd2 {[%clk 0:02:25.7]} 15. Bxd2
{[%clk 0:01:23.3]} 15... f6 {[%clk 0:02:19.8]} 16. Nc6 {[%clk 0:01:15.4]} 16...
Kd7 {[%clk 0:02:02.7]} 17. Nb4 {[%clk 0:01:11]} 17... c6 {[%clk 0:01:57.8]} 18.
Rad1 {[%clk 0:00:59.7]} 18... Ke7 {[%clk 0:01:51.1]} 19. Nxc6+ {[%clk
0:00:56.2]} 19... Kf7 {[%clk 0:01:46.3]} 20. Be3 {[%clk 0:00:28.3]} 20... Bxe3
{[%clk 0:01:38.2]} 21. Rd7+ {[%clk 0:00:25.9]} 21... Kg6 {[%clk 0:01:23.2]} 22.
Rxb7 {[%clk 0:00:25.6]} 22... Bc5 {[%clk 0:01:17.5]} 23. b4 {[%clk 0:00:26.1]}
23... Rac8 {[%clk 0:01:05.3]} 24. Na5 {[%clk 0:00:15.9]} 24... Bd6 {[%clk
0:00:58.4]} 25. g3 {[%clk 0:00:15.6]} 25... Rxc3 {[%clk 0:00:56]} 26. Rd1 {[%clk
0:00:14.8]} 26... Bxb4 {[%clk 0:00:54.8]} 27. Nb3 {[%clk 0:00:14.8]} 27... Rhc8
{[%clk 0:00:47.6]} 28. Rdd7 {[%clk 0:00:15.8]} 28... Bf8 {[%clk 0:00:45.1]} 29.
Nd4 {[%clk 0:00:13]} 29... Rd3 {[%clk 0:00:39.3]} 30. Ne6 {[%clk 0:00:10.6]}
30... Rxd7 {[%clk 0:00:38.6]} 31. Rxd7 {[%clk 0:00:11.9]} 31... Re8 {[%clk
0:00:28.1]} 32. Nxf8+ {[%clk 0:00:11.6]} 32... Rxf8 {[%clk 0:00:28.9]} 33. Ra7
{[%clk 0:00:12.9]} 33... Rc8 {[%clk 0:00:21.6]} 34. Rxa6 {[%clk 0:00:14.2]}
34... Rc1+ {[%clk 0:00:22.1]} 35. Kg2 {[%clk 0:00:14.7]} 35... Rc2 {[%clk
0:00:21.6]} 36. a3 {[%clk 0:00:16.1]} 36... Rc3 {[%clk 0:00:21.4]} 37. Ra5
{[%clk 0:00:17.4]} 37... h6 {[%clk 0:00:17.8]} 38. h4 {[%clk 0:00:18.5]} 38...
Kf7 {[%clk 0:00:16.7]} 39. g4 {[%clk 0:00:18.4]} 39... Rc4 {[%clk 0:00:15.2]}
40. f3 {[%clk 0:00:18.2]} 40... Ra4 {[%clk 0:00:13.3]} 41. Rxb5 {[%clk
0:00:10.3]} 41... Rxa3 {[%clk 0:00:13.8]} 42. Rb7+ {[%clk 0:00:11.5]} 42... Kg6
{[%clk 0:00:13.7]} 43. Kg3 {[%clk 0:00:11.7]} 43... Ra5 {[%clk 0:00:13.2]} 44.
h5+ {[%clk 0:00:11.3]} 44... Kh7 {[%clk 0:00:14.2]} 45. Rc7 {[%clk 0:00:12.1]}
45... Rb5 {[%clk 0:00:14.8]} 46. Ra7 {[%clk 0:00:12.6]} 46... Rc5 {[%clk
0:00:15.4]} 47. Rb7 {[%clk 0:00:12.8]} 47... Rd5 {[%clk 0:00:15.9]} 48. Kf4
{[%clk 0:00:13]} 48... Ra5 {[%clk 0:00:14.5]} 49. Kg3 {[%clk 0:00:13.6]} 49...
Rc5 {[%clk 0:00:14.7]} 50. Ra7 {[%clk 0:00:14.5]} 50... Rb5 {[%clk 0:00:15.4]}
51. Rc7 {[%clk 0:00:14.6]} 51... Ra5 {[%clk 0:00:16.1]} 52. Kf4 {[%clk
0:00:15.1]} 52... Rb5 {[%clk 0:00:15.5]} 53. Kg3 {[%clk 0:00:16]} 53... Ra5
{[%clk 0:00:16.3]} 54. Kf4 {[%clk 0:00:16.7]} 54... Rb5 {[%clk 0:00:17.1]} 55.
Kg3 {[%clk 0:00:17.2]} 55... Ra5 {[%clk 0:00:18]} 1/2-1/2

[Event "*** Titled Tuesday Blitz"]
[Site "Chess.com"]
[Date "2019.01.01"]
[Round "6"]
[White "Anahita_Gholami"]
[Black "Siemba"]
[Result "1-0"]
[WhiteElo "2686"]
[BlackElo "2121"]
[TimeControl "180+2"]
[EndTime "14:27:43 PST"]
[Termination "Anahita_Gholami won by resignation"]

1. d4 {[%clk 0:03:01.9]} 1... Nf6 {[%clk 0:02:59.7]} 2. c4 {[%clk 0:03:02.6]}
2... g6 {[%clk 0:02:59.2]} 3. Nc3 {[%clk 0:03:02.1]} 3... Bg7 {[%clk 0:02:54.8]}
4. g3 {[%clk 0:03:01.1]} 4... O-O {[%clk 0:02:54.7]} 5. Bg2 {[%clk 0:03:02.5]}
5... d6 {[%clk 0:02:49.4]} 6. Nf3 {[%clk 0:03:03.5]} 6... Nbd7 {[%clk
0:02:48.3]} 7. O-O {[%clk 0:03:04.3]} 7... e5 {[%clk 0:02:48.9]} 8. e4 {[%clk
0:03:05.7]} 8... exd4 {[%clk 0:02:47.4]} 9. Nxd4 {[%clk 0:03:05.9]} 9... Re8
{[%clk 0:02:49]} 10. Re1 {[%clk 0:03:05.5]} 10... a6 {[%clk 0:02:50.1]} 11. Be3
{[%clk 0:03:06.1]} 11... Rb8 {[%clk 0:02:51.6]} 12. h3 {[%clk 0:03:06.5]} 12...
Ne5 {[%clk 0:02:52.1]} 13. b3 {[%clk 0:03:06.1]} 13... c5 {[%clk 0:02:52.6]} 14.
Nc2 {[%clk 0:03:06.2]} 14... Nc6 {[%clk 0:02:47.2]} 15. Qd2 {[%clk 0:03:04.5]}
15... b5 {[%clk 0:02:41.5]} 16. Rad1 {[%clk 0:03:04.8]} 16... b4 {[%clk
0:02:41.2]} 17. Nd5 {[%clk 0:03:03.6]} 17... Nxe4 {[%clk 0:02:40.8]} 18. Bxe4
{[%clk 0:03:04.9]} 18... Rxe4 {[%clk 0:02:42.7]} 19. Bg5 {[%clk 0:03:05.7]}
19... Rxe1+ {[%clk 0:02:27.6]} 20. Rxe1 {[%clk 0:03:07.6]} 20... f6 {[%clk
0:02:28.5]} 21. Bxf6 {[%clk 0:03:06.2]} 21... Qf8 {[%clk 0:02:07.6]} 22. Bxg7
{[%clk 0:02:42.2]} 22... Kxg7 {[%clk 0:02:06.5]} 23. Kg2 {[%clk 0:01:52.7]}
23... Bf5 {[%clk 0:01:24.5]} 24. g4 {[%clk 0:01:28.7]} 24... Bxc2 {[%clk
0:00:48.9]} 25. Qxc2 {[%clk 0:01:30.6]} 25... Re8 {[%clk 0:00:49.3]} 26. Re4
{[%clk 0:01:21.2]} 26... Nd4 {[%clk 0:00:19.1]} 27. Qd3 {[%clk 0:01:21.3]} 27...
Re5 {[%clk 0:00:11.4]} 28. Rxe5 {[%clk 0:01:18.2]} 28... dxe5 {[%clk 0:00:13.3]}
29. Qe4 {[%clk 0:01:19.6]} 29... Qd6 {[%clk 0:00:12.8]} 30. h4 {[%clk
0:01:14.8]} 30... h6 {[%clk 0:00:13.5]} 31. Ne3 {[%clk 0:01:12.1]} 31... Ne6
{[%clk 0:00:09.9]} 32. Qb7+ {[%clk 0:01:07.4]} 32... Kg8 {[%clk 0:00:08.7]} 33.
Qd5 {[%clk 0:00:31.9]} 33... Qxd5+ {[%clk 0:00:06.6]} 34. Nxd5 {[%clk
0:00:33.8]} 34... Kf7 {[%clk 0:00:04.6]} 35. Kf3 {[%clk 0:00:35.1]} 35... Nd8
{[%clk 0:00:04.6]} 36. Ke4 {[%clk 0:00:36]} 36... Nc6 {[%clk 0:00:05.8]} 37. Nb6
{[%clk 0:00:33.2]} 37... Ke6 {[%clk 0:00:06.1]} 38. Nd5 {[%clk 0:00:31.7]} 38...
Nd8 {[%clk 0:00:06.4]} 39. f4 {[%clk 0:00:30.6]} 39... exf4 {[%clk 0:00:07.1]}
40. Nxf4+ {[%clk 0:00:32.5]} 40... Kf7 {[%clk 0:00:08.2]} 41. Nd3 {[%clk
0:00:34.4]} 41... Ne6 {[%clk 0:00:08.9]} 42. Kd5 {[%clk 0:00:34.4]} 42... Kf6
{[%clk 0:00:05]} 43. Nxc5 {[%clk 0:00:35.5]} 43... Nf4+ {[%clk 0:00:06.3]} 44.
Ke4 {[%clk 0:00:30.5]} 44... Ng2 {[%clk 0:00:07.1]} 45. Nxa6 {[%clk 0:00:28.9]}
45... Nxh4 {[%clk 0:00:07.8]} 46. Nxb4 {[%clk 0:00:30.6]} 46... Kg5 {[%clk
0:00:07.5]} 47. c5 {[%clk 0:00:30.2]} 47... Kxg4 {[%clk 0:00:07.9]} 48. c6
{[%clk 0:00:27.5]} 48... Nf5 {[%clk 0:00:09.2]} 49. Nd5 {[%clk 0:00:27.4]} 49...
h5 {[%clk 0:00:04.4]} 50. Ke5 {[%clk 0:00:27.4]} 50... h4 {[%clk 0:00:02.9]} 51.
c7 {[%clk 0:00:28.4]} 51... h3 {[%clk 0:00:04.3]} 52. c8=Q {[%clk 0:00:29.6]}
52... h2 {[%clk 0:00:05.9]} 53. Qc1 {[%clk 0:00:30.2]} 53... Ng3 {[%clk
0:00:07.5]} 54. Ne3+ {[%clk 0:00:16.5]} 54... Kh3 {[%clk 0:00:07.4]} 55. Qc8+
{[%clk 0:00:15.6]} 55... Nf5 {[%clk 0:00:05.6]} 56. Nxf5 {[%clk 0:00:16.5]}
56... h1=Q {[%clk 0:00:06.8]} 57. Qh8+ {[%clk 0:00:18]} 1-0